fUSD/lending_fUSD_20260404
["ID","MTS","AMOUNT","RATE_DAILY","PERIOD"]
[419733797,1775343082004,-500.0,0.00035726,9]
[419733798,1775343082017,-762.26,0.00035726,9]
[419733799,1775343082030,-500.0,0.00035726,9]
[419733800,1775343082043,-1021.04,0.00035726,9]
[419733801,1775343082056,-500.0,0.00035726,9]
[419733802,1775343082069,-500.0,0.00035726,9]
[419733803,1775343082082,-500.0,0.00035726,9]
[419733804,1775343082095,-500.0,0.00035726,9]
[419733805,1775343082107,-500.0,0.00035726,9]
[419733806,1775343082119,-500.0,0.00035726,9]
[419733807,1775343082131,-244.65144887,0.00035726,9]
[419733808,1775343082144,-500.0,0.00035726,9]
[419733809,1775343082157,-500.0,0.00035726,9]
[419733810,1775343082169,-500.0,0.00035726,9]
[419733811,1775343082181,-789.77,0.00035726,9]
[419733812,1775343082193,-500.0,0.00035726,9]
[419733813,1775343082206,-500.0,0.00035726,9]
[419733815,1775343082218,-1154.23,0.00035726,9]
[419733816,1775343082231,-500.0,0.00035726,9]
[419733817,1775343082245,-500.0,0.00035726,9]
[419733818,1775343082258,-500.0,0.00035726,9]
[419733819,1775343082271,-500.0,0.00035726,9]
[419733820,1775343082284,-317.90515551,0.00035726,9]
[419733821,1775343082298,-508.12,0.00035726,9]
[419733822,1775343082311,-500.0,0.00035726,9]
[419733823,1775343082325,-369.33552532,0.00035726,9]
[419733824,1775343082339,-669.0,0.00035726,9]
[419733825,1775343082353,-588.16,0.00035726,9]
[419733826,1775343082362,-2538.92,0.00035726,9]
[419733827,1775343082375,-500.0,0.00035726,9]
[419733828,1775343082384,-500.0,0.00035726,9]
[419733829,1775343082393,-500.0,0.00035726,9]
[419733830,1775343082404,-500.0,0.00035726,9]
[419733831,1775343082747,-500.0,0.00035726,9]
[419733832,1775343082791,-500.0,0.00035726,9]
[419733833,1775343082813,-500.0,0.00035726,9]
[419733834,1775343082824,-500.0,0.00035726,9]
[419733835,1775343082835,-500.0,0.00035726,2]
[419733836,1775343082845,-500.0,0.00035726,9]
[419733837,1775343082855,-500.0,0.00035726,9]
[419733838,1775343082864,-500.0,0.00035726,9]
[419733839,1775343082873,-665.37,0.00035726,9]
[419733840,1775343082882,-500.0,0.00035726,9]
[419733841,1775343082891,-500.0,0.00035726,9]
[419733842,1775343082900,-500.0,0.00035726,9]
[419733843,1775343082910,-500.0,0.00035726,9]
[419733844,1775343082919,-628.7708436,0.00035726,9]
[419733845,1775343082928,-500.0,0.00035726,9]
[419733846,1775343082938,-585.58,0.00035726,9]
[419733847,1775343082947,-834.75,0.00035726,9]
[419733848,1775343082957,-500.0,0.00035726,9]
[419733849,1775343082966,-500.0,0.00035726,9]
[419733850,1775343082976,-1325.23,0.00035726,9]
[419733851,1775343082985,-2606.48,0.00035726,9]
[419733852,1775343082995,-500.0,0.00035726,9]
[419733853,1775343083004,-500.0,0.00035726,9]
[419733854,1775343083014,-1150.72,0.00035726,9]
[419733855,1775343083024,-500.0,0.00035726,9]
[419733856,1775343083034,-500.0,0.00035726,9]
[419733857,1775343083044,-552.67244149,0.00035726,9]
[419733858,1775343083053,-500.0,0.00035726,9]
[419733859,1775343083063,-500.0,0.00035726,9]
[419733860,1775343083072,-295.1147986,0.00035726,9]
[419733861,1775343083082,-1099.53,0.00035726,9]
[419733862,1775343083092,-500.0,0.00035726,9]
[419733863,1775343083101,-500.0,0.00035726,9]
[419733864,1775343083111,-500.0,0.00035726,9]
[419733865,1775343083121,-500.0,0.00035726,9]
[419733866,1775343083130,-816.24,0.00035726,9]
[419733867,1775343083140,-659.36,0.00035726,9]
[419733868,1775343083149,-500.0,0.00035726,9]
[419733869,1775343083158,-500.0,0.00035726,9]
[419733870,1775343083167,-740.61,0.00035726,9]
[419733871,1775343083177,-503.22243864,0.00035726,9]
[419733872,1775343083187,-792.94,0.00035726,9]
[419733873,1775343083197,-771.56,0.00035726,9]
[419733874,1775343083206,-500.0,0.00035726,9]
[419733875,1775343083215,-500.0,0.00035726,9]
[419733876,1775343083224,-1661.15,0.00035726,9]
[419733877,1775343083234,-824.28,0.00035726,9]
[419733878,1775343083244,-500.0,0.00035726,9]
[419733879,1775343083254,-500.0,0.00035726,9]
[419733880,1775343083262,-500.0,0.00035726,9]
[419733881,1775343083272,-520.31,0.00035726,9]
[419733882,1775343083281,-500.0,0.00035726,9]
[419733883,1775343083290,-1022.44,0.00035726,9]
[419733884,1775343083299,-660.94,0.00035726,9]
[419733885,1775343083309,-500.0,0.00035726,9]
[419733886,1775343083318,-2542.26,0.00035726,9]
[419733887,1775343083327,-2595.17,0.00035726,9]
[419733888,1775343083336,-500.0,0.00035726,9]
[419733889,1775343083346,-500.0,0.00035726,9]
[419733890,1775343083357,-500.0,0.00035726,9]
[419733891,1775343083368,-500.0,0.00035726,9]
[419733892,1775343083379,-500.0,0.00035726,9]
[419733893,1775343083390,-517.01,0.00035726,9]
[419733894,1775343083400,-500.0,0.00035726,9]
[419733895,1775343083410,-500.0,0.00035726,9]
[419733896,1775343083420,-513.79,0.00035726,9]
[419733897,1775343083430,-500.0,0.00035726,9]
[419733898,1775343083440,-500.0,0.00035726,9]
[419733899,1775343083449,-954.29,0.00035726,9]
[419733900,1775343083459,-2843.26,0.00035726,9]
[419733901,1775343083469,-500.0,0.00035726,9]
[419733902,1775343083478,-500.0,0.00035726,9]
[419733903,1775343083487,-1821.19,0.00035726,9]
[419733904,1775343083497,-500.0,0.00035726,9]
[419733905,1775343083506,-630.4,0.00035726,9]
[419733906,1775343083516,-500.0,0.00035726,9]
[419733907,1775343083526,-3493.27,0.00035726,2]
[419733908,1775343083535,-528.04,0.00035726,9]
[419733909,1775343083545,-2008.55,0.00035726,9]
[419733910,1775343083554,-2787.07,0.00035726,9]
[419733911,1775343083563,-500.0,0.00035726,9]
[419733912,1775343083572,-500.0,0.00035726,9]
[419733913,1775343083581,-500.0,0.00035726,9]
[419733914,1775343083590,-500.0,0.00035726,9]
[419733915,1775343083600,-500.0,0.00035726,9]
[419733916,1775343083609,-635.48,0.00035726,9]
[419733917,1775343083619,-1107.63,0.00035726,9]
[419733918,1775343083631,-500.0,0.00035726,9]
[419733919,1775343083641,-500.0,0.00035726,9]
[419733920,1775343083650,-500.0,0.00035726,9]
[419733921,1775343083661,-500.0,0.00035726,9]
[419733922,1775343083670,-1008.71,0.00035726,9]
[419733923,1775343083679,-500.0,0.00035726,9]
[419733924,1775343083688,-1542.16,0.00035726,9]
[419733925,1775343083698,-1909.73,0.00035726,9]
[419733926,1775343083708,-500.0,0.00035726,9]
[419733927,1775343083717,-300.0,0.00035726,2]
[419733928,1775343083726,-500.0,0.00035726,9]
[419733929,1775343083735,-500.0,0.00035726,9]
[419733930,1775343083744,-1515.14,0.00035726,9]
[419733931,1775343083753,-413.20765282,0.00035726,9]
[419733932,1775343083762,-492.69012604,0.00035726,9]
[419733933,1775343083773,-2339.75,0.00035726,9]
[419733934,1775343083783,-1215.66,0.00035726,9]
[419733935,1775343083792,-690.03,0.00035726,9]
[419733936,1775343083802,-500.0,0.00035726,9]
[419733937,1775343083811,-1275.23,0.00035726,9]
[419733938,1775343083821,-1291.7,0.00035726,9]
[419733939,1775343083830,-500.0,0.00035726,9]
[419733940,1775343083840,-500.0,0.00035726,9]
[419733941,1775343083850,-500.0,0.00035726,9]
[419733942,1775343083859,-623.4282421,0.00035726,9]
[419733943,1775343083869,-500.0,0.00035726,9]
[419733944,1775343083880,-1453.31,0.00035726,9]
[419733945,1775343083889,-2034.58,0.00035726,9]
[419733946,1775343083899,-1334.13,0.00035726,9]
[419733947,1775343083910,-211.28086984,0.00035726,9]
[419733948,1775343083919,-500.0,0.00035726,9]
[419733949,1775343083931,-1553.44,0.00035726,9]
[419733950,1775343083940,-500.0,0.00035726,9]
[419733951,1775343083950,-500.0,0.00035726,9]
[419733952,1775343083959,-500.0,0.00035726,9]
[419733953,1775343083969,-500.0,0.00035726,9]
[419733954,1775343083979,-500.0,0.00035726,9]
[419733955,1775343083988,-500.0,0.00035726,9]
[419733956,1775343083998,-2244.02,0.00035726,9]
[419733957,1775343084008,-1518.32,0.00035726,9]
[419733958,1775343084017,-500.0,0.00035726,9]
[419733959,1775343084027,-500.0,0.00035726,9]
[419733960,1775343084037,-500.0,0.00035726,9]
[419733961,1775343084046,-500.0,0.00035726,9]
[419733962,1775343084058,-1480.7,0.00035726,9]
[419733963,1775343084068,-1214.51,0.00035726,9]
[419733964,1775343084077,-500.0,0.00035726,9]
[419733965,1775343084087,-832.8,0.00035726,9]
[419733966,1775343084096,-3408.64,0.00035726,9]
[419733967,1775343084105,-1740.88,0.00035726,9]
[419733968,1775343084114,-2020.42,0.00035726,9]
[419733969,1775343084124,-500.0,0.00035726,9]
[419733970,1775343084133,-1169.33,0.00035726,9]
[419733971,1775343084142,-500.0,0.00035726,9]
[419733972,1775343084151,-500.0,0.00035726,9]
[419733973,1775343084160,-500.0,0.00035726,9]
[419733974,1775343084170,-2468.52,0.00035726,9]
[419733975,1775343084179,-1430.1,0.00035726,9]
[419733976,1775343084188,-203.48218109,0.00035726,9]
[419733977,1775343084198,-500.0,0.00035726,9]
[419733978,1775343084207,-2231.97,0.00035726,9]
[419733979,1775343084217,-500.0,0.00035726,9]
[419733980,1775343084227,-2671.13,0.00035726,9]
[419733981,1775343084237,-500.0,0.00035726,9]
[419733982,1775343084247,-500.0,0.00035726,9]
[419733983,1775343084257,-500.0,0.00035726,9]
[419733984,1775343084267,-500.0,0.00035726,9]
[419733985,1775343084276,-498.93793585,0.00035726,9]
[419733986,1775343084286,-1030.75,0.00035726,9]
[419733987,1775343084295,-500.0,0.00035726,9]
[419733988,1775343084305,-1432.49,0.00035726,9]
[419733989,1775343084317,-500.0,0.00035726,9]
[419733990,1775343084329,-1737.05,0.00035726,9]
[419733991,1775343084340,-500.0,0.00035726,9]
[419733992,1775343084349,-1236.31,0.00035726,9]
[419733993,1775343084358,-500.0,0.00035726,9]
[419733994,1775343084367,-500.0,0.00035726,9]
[419733995,1775343084377,-2038.61,0.00035726,9]
[419733996,1775343084387,-630.23,0.00035726,9]
[419733997,1775343084396,-587.16642667,0.00035726,9]
[419733998,1775343084406,-500.0,0.00035726,9]
[419733999,1775343084415,-500.0,0.00035726,9]
[419734000,1775343084424,-500.0,0.00035726,9]
[419734001,1775343084433,-500.0,0.00035726,9]
[419734002,1775343084442,-500.0,0.00035726,9]
[419734003,1775343084451,-500.0,0.00035726,9]
[419734004,1775343084460,-3114.85,0.00035726,9]
[419734005,1775343084470,-500.0,0.00035726,9]
[419734006,1775343084479,-500.0,0.00035726,9]
[419734007,1775343084488,-500.0,0.00035726,9]
[419734008,1775343084497,-992.42,0.00035726,9]
[419734009,1775343084506,-500.0,0.00035726,9]
[419734010,1775343084515,-1254.96,0.00035726,9]
[419734011,1775343084524,-500.0,0.00035726,9]
[419734012,1775343084534,-432.06014285,0.00035726,9]
[419734013,1775343084543,-1661.44,0.00035726,9]
[419734014,1775343084552,-3768.31,0.00035726,9]
[419734015,1775343084561,-507.09286787,0.00035726,9]
[419734016,1775343084570,-500.0,0.00035726,9]
[419734017,1775343084579,-2807.28,0.00035726,9]
[419734018,1775343084588,-2513.82,0.00035726,9]
[419734019,1775343084597,-2883.13,0.00035726,9]
[419734020,1775343084606,-500.0,0.00035726,9]
[419734021,1775343084615,-1264.22,0.00035726,9]
[419734022,1775343084624,-1362.88,0.00035726,9]
[419734023,1775343084633,-717.54,0.00035726,9]
[419734024,1775343084642,-500.0,0.00035726,9]
[419734025,1775343084651,-500.0,0.00035726,9]
[419734026,1775343084661,-760.58,0.00035726,9]
[419734027,1775343084671,-500.0,0.00035726,9]
[419734028,1775343084680,-500.0,0.00035726,9]
[419734029,1775343084689,-500.0,0.00035726,9]
[419734030,1775343084698,-500.0,0.00035726,9]
[419734031,1775343084707,-1119.27,0.00035726,9]
[419734032,1775343084716,-183.9296945,0.00035726,9]
[419734033,1775343084726,-500.0,0.00035726,9]
[419734034,1775343084737,-1202.47,0.00035726,9]
[419734035,1775343084747,-500.0,0.00035726,9]
[419734036,1775343084756,-1518.99,0.00035726,9]
[419734037,1775343084765,-737.11,0.00035726,9]
[419734038,1775343084774,-1708.09,0.00035726,9]
[419734039,1775343084784,-500.0,0.00035726,9]
[419734040,1775343084795,-500.0,0.00035726,9]
[419734041,1775343084804,-500.0,0.00035726,9]
[419734042,1775343084814,-602.16,0.00035726,9]
[419734043,1775343084823,-1174.03,0.00035726,9]
[419734044,1775343084833,-500.0,0.00035726,9]
[419734045,1775343084842,-4790.68,0.00035726,9]
[419734046,1775343084852,-1578.44,0.00035726,9]
[419734047,1775343084861,-1232.34,0.00035726,9]
[419734048,1775343084871,-2167.44,0.00035726,4]
[419734049,1775343084880,-500.0,0.00035726,9]
[419734050,1775343084889,-500.0,0.00035726,9]
[419734051,1775343084899,-500.0,0.00035726,9]
[419734052,1775343084909,-710.33,0.00035726,9]
[419734053,1775343084918,-502.66,0.00035726,9]
[419734054,1775343084928,-631.97,0.00035726,9]
[419734055,1775343084938,-500.0,0.00035726,9]
[419734056,1775343084948,-500.0,0.00035726,9]
[419734057,1775343084958,-391.16596713,0.00035726,9]
[419734058,1775343084967,-500.0,0.00035726,9]
[419734059,1775343084977,-500.0,0.00035726,9]
[419734060,1775343084986,-500.0,0.00035726,9]
[419734061,1775343084995,-500.0,0.00035726,9]
[419734062,1775343085004,-309.86910471,0.00035726,9]
[419734063,1775343085014,-815.63,0.00035726,9]
[419734064,1775343085023,-636.91,0.00035726,9]
[419734065,1775343085033,-500.0,0.00035726,9]
[419734066,1775343085042,-1283.14,0.00035726,9]
[419734067,1775343085051,-500.0,0.00035726,9]
[419734068,1775343085060,-500.0,0.00035726,9]
[419734069,1775343085070,-500.0,0.00035726,9]
[419734070,1775343085080,-500.0,0.00035726,9]
[419734071,1775343085089,-3422.2,0.00035726,9]
[419734072,1775343085098,-566.21,0.00035726,9]
[419734073,1775343085107,-757.91,0.00035726,9]
[419734074,1775343085117,-500.0,0.00035726,9]
[419734075,1775343085126,-500.0,0.00035726,9]
[419734076,1775343085135,-500.0,0.00035726,9]
[419734077,1775343085145,-500.0,0.00035726,9]
[419734078,1775343085154,-500.0,0.00035726,9]
[419734079,1775343085164,-368.47366844,0.00035726,9]
[419734080,1775343085173,-500.0,0.00035726,9]
[419734081,1775343085183,-152.88228446,0.00035726,9]
[419734082,1775343085193,-500.0,0.00035726,9]
[419734083,1775343085202,-500.0,0.00035726,9]
[419734084,1775343085212,-590.75,0.00035726,7]
[419734085,1775343085222,-500.0,0.00035726,9]
[419734086,1775343085231,-11946.99,0.00035726,9]
[419734087,1775343085241,-500.0,0.00035726,9]
[419734088,1775343085250,-500.0,0.00035726,9]
[419734089,1775343085260,-500.0,0.00035726,9]
[419734090,1775343085269,-500.0,0.00035726,9]
[419734091,1775343085279,-1241.17,0.00035726,9]
[419734092,1775343085288,-3214.44,0.00035726,9]
[419734093,1775343085297,-500.0,0.00035726,9]
[419734094,1775343085306,-1755.97,0.00035726,9]
[419734095,1775343085316,-2719.79,0.00035726,9]
[419734096,1775343085325,-500.0,0.00035726,9]
[419734097,1775343085335,-674.73,0.00035726,9]
[419734098,1775343085345,-500.0,0.00035726,9]
[419734099,1775343085354,-500.0,0.00035726,9]
[419734100,1775343085364,-784.99,0.00035726,9]
[419734101,1775343085374,-500.0,0.00035726,9]
[419734102,1775343085383,-500.0,0.00035726,9]
[419734103,1775343085393,-500.0,0.00035726,9]
[419734104,1775343085402,-500.0,0.00035726,9]
[419734105,1775343085412,-817.74,0.00035726,9]
[419734106,1775343085422,-760.94,0.00035726,9]
[419734107,1775343085431,-500.0,0.00035726,9]
[419734108,1775343085441,-4317.74,0.00035726,9]
[419734109,1775343085450,-1006.53,0.00035726,9]
[419734110,1775343085461,-500.0,0.00035726,9]
[419734111,1775343085470,-500.0,0.00035726,9]
[419734112,1775343085480,-607.55,0.00035726,9]
[419734113,1775343085492,-890.81,0.00035726,9]
[419734114,1775343085501,-500.0,0.00035726,9]
[419734115,1775343085511,-500.0,0.00035726,9]
[419734116,1775343085520,-1083.89,0.00035726,9]
[419734117,1775343085530,-500.0,0.00035726,9]
[419734118,1775343085540,-500.0,0.00035726,9]
[419734119,1775343085549,-700.12,0.00035726,9]
[419734120,1775343085559,-644.51,0.00035726,9]
[419734121,1775343085569,-500.0,0.00035726,9]
[419734122,1775343085579,-500.0,0.00035726,9]
[419734123,1775343085589,-500.0,0.00035726,9]
[419734124,1775343085598,-500.0,0.00035726,9]
[419734125,1775343085608,-500.0,0.00035726,9]
[419734126,1775343085618,-500.0,0.00035726,9]
[419734127,1775343085628,-500.0,0.00035726,9]
[419734128,1775343085639,-567.35,0.00035726,9]
[419734129,1775343085649,-500.0,0.00035726,9]
[419734130,1775343085659,-1237.51,0.00035726,9]
[419734131,1775343085669,-500.0,0.00035726,9]
[419734132,1775343085678,-500.0,0.00035726,9]
[419734133,1775343085688,-847.19,0.00035726,9]
[419734134,1775343085697,-500.0,0.00035726,9]
[419734135,1775343085707,-1584.33,0.00035726,9]
[419734136,1775343085717,-500.0,0.00035726,9]
[419734137,1775343085727,-500.0,0.00035726,9]
[419734138,1775343085736,-500.0,0.00035726,9]
[419734139,1775343085747,-781.03,0.00035726,9]
[419734140,1775343085757,-318.47539363,0.00035726,9]
[419734141,1775343085766,-500.0,0.00035726,9]
[419734142,1775343085778,-500.0,0.00035726,9]
[419734143,1775343085787,-500.0,0.00035726,9]
[419734144,1775343085797,-500.0,0.00035726,9]
[419734145,1775343085806,-500.0,0.00035726,9]
[419734146,1775343085816,-312.00943146,0.00035726,9]
[419734147,1775343085826,-1247.28,0.00035726,9]
[419734148,1775343085835,-500.0,0.00035726,9]
[419734149,1775343085845,-908.11,0.00035726,9]
[419734150,1775343085854,-500.0,0.00035726,9]
[419734151,1775343085864,-1607.03,0.00035726,9]
[419734152,1775343085873,-500.0,0.00035726,9]
[419734153,1775343085883,-500.0,0.00035726,9]
[419734154,1775343085893,-1003.23,0.00035726,9]
[419734155,1775343085903,-5585.72,0.00035726,9]
[419734156,1775343086113,-500.0,0.00035726,9]
[419734157,1775343086131,-792.99,0.00035726,9]
[419734158,1775343086141,-500.0,0.00035726,9]
[419734159,1775343086150,-2071.62,0.00035726,9]
[419734160,1775343086160,-500.0,0.00035726,9]
[419734161,1775343086169,-516.39,0.00035726,9]
[419734162,1775343086179,-1569.44,0.00035726,9]
[419734163,1775343086189,-1006.27,0.00035726,9]
[419734164,1775343086198,-552.08,0.00035726,9]
[419734165,1775343086208,-544.99481052,0.00035726,9]
[419734166,1775343086217,-157.29144702,0.00035726,9]
[419734167,1775343086227,-500.0,0.00035726,9]
[419734168,1775343086237,-500.0,0.00035726,9]
[419734169,1775343086247,-1354.05,0.00035726,9]
[419734170,1775343086256,-500.0,0.00035726,9]
[419734171,1775343086266,-500.0,0.00035726,9]
[419734172,1775343086275,-500.0,0.00035726,9]
[419734173,1775343086285,-500.0,0.00035726,9]
[419734174,1775343086295,-914.54,0.00035726,9]
[419734175,1775343086305,-500.0,0.00035726,9]
[419734176,1775343086317,-1902.51,0.00035726,9]
[419734177,1775343086327,-500.0,0.00035726,9]
[419734178,1775343086337,-504.41527118,0.00035726,9]
[419734179,1775343086347,-502.04876745,0.00035726,9]
[419734180,1775343086356,-2136.66,0.00035726,9]
[419734181,1775343086366,-500.0,0.00035726,9]
[419734182,1775343086376,-280.67894386,0.00035726,2]
[419734183,1775343086385,-500.0,0.00035726,9]
[419734184,1775343086395,-1796.32532063,0.00035735,2]
[419734185,1775343086406,-1008.4672839,0.00035735,2]
[419734186,1775343086417,-192.73866301,0.00035735,2]
[419734187,1775343086427,-9808.99890569,0.00035735,2]
[419734188,1775343086438,-578.60686938,0.00035752,9]
[419734189,1775343086447,-578.60686938,0.00035752,9]
[419734190,1775343086456,-578.60686937,0.00035752,9]
[419734191,1775343086466,-578.60686937,0.00035752,9]
[419734192,1775343086476,-2110.0,0.00035773,2]
[419734193,1775343086486,-233.34,0.00035797,30]
[419734194,1775343086496,-1399.93,0.00035797,30]
[419734195,1775343086505,-160.9357,0.000358,14]
[419734196,1775343086515,-150.0,0.00035806,7]
[419734197,1775343086525,-272.37334393,0.00035835,9]
[419734198,1775343086534,-169.39596403,0.00035835,9]
[419734199,1775343086544,-500.0,0.00035835,9]
[419734200,1775343086553,-500.0,0.00035835,9]
[419734201,1775343086564,-501.22300413,0.00035835,9]
[419734202,1775343086573,-500.0,0.00035835,9]
[419734203,1775343086583,-500.0,0.00035835,9]
[419734204,1775343086593,-500.0,0.00035835,9]
[419734205,1775343086603,-500.0,0.00035835,9]
[419734206,1775343086612,-532.86170089,0.00035835,9]
[419734207,1775343086621,-500.0,0.00035835,9]
[419734208,1775343086631,-500.0,0.00035835,9]
[419734209,1775343086641,-500.0,0.00035835,9]
[419734210,1775343086651,-500.0,0.00035835,9]
[419734211,1775343086660,-500.0,0.00035835,9]
[419734212,1775343086670,-500.0,0.00035835,9]
[419734213,1775343086680,-1368.38,0.00035835,9]
[419734214,1775343086690,-521.44,0.00035835,9]
[419734215,1775343086699,-500.0,0.00035835,9]
[419734216,1775343086709,-500.0,0.00035835,9]
[419734217,1775343086718,-500.0,0.00035835,9]
[419734218,1775343086727,-500.0,0.00035835,9]
[419734219,1775343086736,-630.01,0.00035835,9]
[419734220,1775343086747,-500.0,0.00035835,9]
[419734221,1775343086756,-607.85694317,0.00035835,9]
[419734222,1775343086766,-500.0,0.00035835,9]
[419734223,1775343086775,-208.92164843,0.00035835,9]
[419734224,1775343086785,-500.0,0.00035835,9]
[419734225,1775343086795,-507.61784807,0.00035835,9]
[419734226,1775343086804,-559.76,0.00035835,9]
[419734227,1775343086813,-500.0,0.00035835,9]
[419734228,1775343086823,-500.0,0.00035835,9]
[419734229,1775343086833,-500.0,0.00035835,9]
[419734230,1775343086843,-500.0,0.00035835,2]
[419734231,1775343086852,-500.0,0.00035835,9]
[419734232,1775343086862,-500.0,0.00035835,9]
[419734233,1775343086871,-500.0,0.00035835,9]
[419734234,1775343086881,-500.0,0.00035835,9]
[419734235,1775343086890,-500.0,0.00035835,9]
[419734236,1775343086900,-500.0,0.00035835,9]
[419734237,1775343086910,-500.0,0.00035835,9]
[419734238,1775343086920,-500.0,0.00035835,9]
[419734239,1775343086929,-500.0,0.00035835,9]
[419734240,1775343086939,-500.0,0.00035835,9]
[419734241,1775343086949,-500.0,0.00035835,9]
[419734242,1775343086958,-500.0,0.00035835,9]
[419734243,1775343086967,-500.0,0.00035835,9]
[419734244,1775343086977,-639.07973091,0.00035835,9]
[419734245,1775343086987,-1434.73,0.00035835,9]
[419734246,1775343086997,-500.0,0.00035835,9]
[419734247,1775343087007,-500.0,0.00035835,9]
[419734248,1775343087017,-500.0,0.00035835,9]
[419734249,1775343087027,-500.0,0.00035835,9]
[419734250,1775343087037,-1103.18,0.00035835,9]
[419734251,1775343087046,-500.0,0.00035835,9]
[419734252,1775343087056,-500.0,0.00035835,9]
[419734253,1775343087065,-500.0,0.00035835,9]
[419734254,1775343087076,-500.0,0.00035835,9]
[419734255,1775343087086,-1284.69,0.00035835,9]
[419734256,1775343087096,-500.0,0.00035835,9]
[419734257,1775343087105,-500.0,0.00035835,9]
[419734258,1775343087115,-500.0,0.00035835,9]
[419734259,1775343087124,-500.0,0.00035835,9]
[419734260,1775343087134,-500.0,0.00035835,9]
[419734261,1775343087144,-213.43770541,0.00035835,9]
[419734262,1775343087153,-500.0,0.00035835,9]
[419734263,1775343087163,-500.0,0.00035835,9]
[419734264,1775343087172,-500.0,0.00035835,9]
[419734265,1775343087182,-500.0,0.00035835,9]
[419734266,1775343087192,-500.0,0.00035835,9]
[419734267,1775343087202,-500.0,0.00035835,9]
[419734268,1775343087211,-500.0,0.00035835,9]
[419734269,1775343087221,-500.0,0.00035835,9]
[419734270,1775343087230,-500.0,0.00035835,9]
[419734271,1775343087239,-500.0,0.00035835,9]
[419734272,1775343087250,-951.26,0.00035835,9]
[419734273,1775343087259,-522.37387975,0.00035835,9]
[419734274,1775343087269,-500.0,0.00035835,9]
[419734275,1775343087279,-500.0,0.00035835,9]
[419734276,1775343087288,-903.83,0.00035835,9]
[419734277,1775343087298,-500.0,0.00035835,9]
[419734278,1775343087307,-500.0,0.00035835,9]
[419734279,1775343087316,-251.45031709,0.00035835,9]
[419734280,1775343087326,-500.0,0.00035835,9]
[419734281,1775343087335,-1363.05,0.00035835,9]
[419734282,1775343087344,-500.0,0.00035835,9]
[419734283,1775343087354,-511.19387187,0.00035835,9]
[419734284,1775343087363,-500.0,0.00035835,9]
[419734285,1775343087372,-1024.58,0.00035835,9]
[419734286,1775343087383,-500.0,0.00035835,9]
[419734287,1775343087393,-500.0,0.00035835,9]
[419734288,1775343087403,-500.0,0.00035835,9]
[419734289,1775343087412,-500.0,0.00035835,9]
[419734290,1775343087422,-500.0,0.00035835,9]
[419734291,1775343087431,-1374.86,0.00035835,9]
[419734292,1775343087440,-580.00249358,0.00035835,9]
[419734293,1775343087449,-500.0,0.00035835,9]
[419734294,1775343087458,-500.0,0.00035835,9]
[419734295,1775343087470,-628.54,0.00035835,9]
[419734296,1775343087479,-500.0,0.00035835,9]
[419734297,1775343087488,-500.0,0.00035835,9]